bitfinex-derivatives/quotes_ETHF0:USTF0_20240905
["timestamp","ask_amount","ask_price","bid_price","bid_amount"]
[1725565238306,3.2078,2362.8,2362.7,0.4233]
[1725565238613,0.42961015,2363.0,2362.7,3.2078]
[1725565238805,0.42961015,2363.0,2362.7,3.63109]
[1725565239001,0.42961015,2363.0,2362.7,0.42329]
[1725565239205,0.42961015,2363.0,2362.6,0.3861]
[1725565239401,0.00635015,2363.0,2362.6,0.3861]
[1725565239625,0.42961015,2363.0,2362.7,0.42329]
[1725565239806,0.00635015,2363.0,2362.6,3.5939]
[1725565240008,4.48400585,2362.9,2362.7,0.42329]
[1725565240307,4.48400585,2362.9,2362.8,0.42329]
[1725565240510,0.00635015,2363.0,2362.9,0.42327]
[1725565242512,15.75915799,2363.0,2362.5,0.00635015]
[1725565242813,0.42332,2362.6,2362.5,0.00635015]
[1725565243015,1.48163,2362.6,2362.5,0.00635015]
[1725565243316,19.740713,2362.6,2362.5,0.00635015]
[1725565243615,19.740713,2362.6,2361.3,3.2078]
[1725565243616,0.42345,2361.9,2361.3,3.2078]
[1725565243804,4.57,2362.2,2361.6,0.42349]
[1725565244006,0.42346,2361.9,2361.6,0.42349]
[1725565244214,0.42346,2361.9,2361.5,0.42351]
[1725565244413,0.42348,2361.7,2361.4,0.79263]
[1725565244607,8.88453081,2362.1,2361.4,0.3691]
[1725565244815,0.00635015,2361.8,2361.4,0.3691]
[1725565245013,0.42982015,2361.8,2361.4,0.79263]
[1725565245216,0.00635015,2361.8,2361.5,0.42352]
[1725565245411,0.00635015,2361.8,2361.7,0.42348]
[1725565245806,0.00635015,2361.8,2361.7,11.39058]
[1725565246003,3.2078,2362.5,2361.7,10.9671]
[1725565246211,0.3825,2362.8,2362.4,0.42335]
[1725565246212,4.0136,2362.8,2362.4,0.42335]
[1725565246412,3.2078,2362.5,2361.9,0.42344]
[1725565246615,0.42342,2362.1,2361.8,0.42345]
[1725565246808,0.4234,2362.2,2361.9,0.42344]
[1725565247003,0.4234,2362.2,2361.8,0.42980015]
[1725565247218,0.4234,2362.2,2361.9,0.42345]
[1725565247416,0.4234,2362.2,2361.8,0.00635015]
[1725565247711,0.42345,2361.9,2361.8,0.00635015]
[1725565247914,0.42351,2361.6,2361.4,0.3691]
[1725565248113,0.4235,2361.6,2361.4,0.3691]
[1725565248316,4.25087388,2361.5,2361.4,0.3691]
[1725565248509,0.78068,2361.8,2361.4,0.79264]
[1725565248705,4.76757001,2361.7,2361.4,0.3691]
[1725565248904,0.42349,2361.7,2361.4,0.79264]
[1725565249310,0.3572,2361.8,2361.2,3.2078]
[1725565249616,4.61367142,2361.6,2361.1,3.2078]
[1725565249812,4.61367142,2361.7,2361.1,3.2078]
[1725565250113,4.81345,2361.9,2361.0,1.44423]
[1725565250114,4.39,2361.9,2361.4,3.2078]
[1725565250316,4.7559,2362.1,2361.5,0.7516]
[1725565250511,4.7559,2362.1,2361.8,0.42345]
[1725565250814,4.79777769,2362.0,2361.8,0.42345]
[1725565251011,4.79777769,2362.0,2361.5,1.1092]
[1725565251416,4.7559,2362.1,2361.5,1.1092]
[1725565251711,0.42349,2361.7,2361.5,0.7516]
[1725565251913,4.39,2361.9,2361.5,1.17511]
[1725565252111,0.42348,2361.8,2361.5,4.38291]
[1725565252306,4.68519025,2361.8,2361.5,1.17511]
[1725565252511,4.68519025,2361.8,2361.6,0.4235]
[1725565252708,4.68519025,2361.8,2361.7,0.42348]
[1725565252914,4.81345,2361.9,2361.6,0.42349]
[1725565253614,4.81345,2361.9,2361.6,0.42348]
[1725565253826,5.17932,2362.1,2361.8,0.42346]
[1725565254123,0.42345,2361.9,2361.7,0.42347]
[1725565254713,4.88939348,2362.0,2361.8,0.42346]
[1725565254915,5.31282348,2362.0,2361.7,0.42347]
[1725565255415,4.39,2361.8,2361.0,3.2078]
[1725565255612,0.42351,2361.6,2361.3,0.42354]
[1725565256016,5.21086967,2361.7,2361.3,0.42354]
[1725565256017,4.60770877,2361.5,2361.3,0.42354]
[1725565256216,0.42354,2361.4,2361.1,0.3922]
[1725565256420,0.42354,2361.4,2361.2,0.42357]
[1725565256812,1.43444,2361.7,2361.2,0.42356]
[1725565257015,0.42354,2361.4,2361.2,0.42356]
[1725565257215,4.73142869,2361.6,2361.1,0.3922]
[1725565257412,5.15499869,2361.3,2361.1,0.3922]
[1725565257609,4.39,2361.5,2361.1,0.3922]
[1725565257921,4.39,2361.5,2361.2,0.42356]
[1725565257922,5.47135144,2361.4,2361.2,0.42356]
[1725565258119,5.09835144,2361.4,2361.2,0.42356]
[1725565258425,0.42355,2361.4,2361.1,0.3922]
[1725565258726,0.42356,2361.3,2361.1,0.81578]
[1725565258919,4.39,2361.4,2361.0,3.6314]
[1725565259117,0.42358,2361.2,2361.0,3.6314]
[1725565259925,0.42368,2360.6,2360.1,3.2078]
[1725565260117,4.39,2360.5,2360.1,0.391]
[1725565260319,4.39,2360.5,2360.3,0.42372]
[1725565260719,4.8137,2360.5,2360.3,0.42372]
[1725565261212,4.8137,2360.5,2359.1,3.2078]
[1725565261213,0.4237,2360.3,2359.1,3.2078]
[1725565261433,0.4237,2360.3,2358.2,1.09593328]
[1725565261434,4.39,2359.2,2358.7,3.2078]
[1725565261717,4.39,2359.2,2359.1,1.48383]
[1725565261718,0.00635015,2359.2,2359.1,1.48383]
[1725565261922,0.00635015,2359.2,2359.1,0.42395]
[1725565262128,0.00635015,2359.2,2359.1,4.66315]
[1725565262316,0.00635015,2359.2,2359.1,11.72303]
[1725565262317,1.5e-07,2359.2,2359.1,11.72303]
[1725565262517,1.5e-07,2359.2,2359.1,4.66315]
[1725565262918,1.5e-07,2359.2,2359.1,0.42395]
[1725565263124,1.5e-07,2359.2,2358.9,3.2078]
[1725565263425,1.5e-07,2359.2,2358.8,0.75585015]
[1725565263625,1.5e-07,2359.2,2358.9,3.2078]
[1725565263828,1.5e-07,2359.2,2358.8,1.17984015]
[1725565264017,1.5e-07,2359.2,2359.0,3.63176]
[1725565264217,1.5e-07,2359.2,2359.1,0.42395]
[1725565264413,1.5e-07,2359.2,2359.1,4.66315]
[1725565264815,1.5e-07,2359.2,2359.1,10.66315]
[1725565265023,1.5e-07,2359.2,2359.1,11.72303]
[1725565265728,1.5e-07,2359.2,2359.1,0.42395]
[1725565266225,1.5e-07,2359.2,2359.1,10.66315]
[1725565266425,10.23920015,2359.2,2358.8,0.39735015]
[1725565266724,10.23920015,2359.2,2358.3,0.42408]
[1725565266725,0.42403,2358.7,2358.3,0.42408]
[1725565266925,3.2078,2358.7,2358.1,3.2078]
[1725565267116,4.58,2358.9,2358.1,3.2078]
[1725565267117,4.7532841,2358.6,2358.1,3.2078]
[1725565267313,4.58,2358.9,2358.1,3.2078]
[1725565267518,4.58,2358.9,2358.4,3.2078]
[1725565267719,4.7532841,2358.8,2358.7,0.42402]
[1725565267921,4.7532841,2358.8,2358.0,1.06035]
[1725565267922,3.2078,2359.0,2358.8,0.42399]
[1725565268127,4.44912736,2358.9,2358.8,0.42399]
[1725565268327,4.44912736,2358.9,2358.1,0.3911]
[1725565268328,8.8192,2358.9,2358.1,3.5989]
[1725565268526,3.2078,2359.0,2358.6,0.42404]
[1725565268718,4.44912736,2358.9,2358.5,0.42404]
[1725565268926,4.44912736,2358.9,2358.8,0.424]
[1725565269231,3.2078,2359.0,2358.8,0.424]
[1725565269425,3.2078,2359.0,2358.8,0.42399]
[1725565270224,1.5e-07,2359.2,2359.1,0.42395]
[1725565270415,1.5e-07,2359.2,2359.1,5.72303]
[1725565270620,1.5e-07,2359.2,2359.1,4.66315]
[1725565270820,1.5e-07,2359.2,2359.1,11.72303]
[1725565271031,1.5e-07,2359.2,2359.1,12.10023]
[1725565271426,0.42398,2359.0,2358.7,3.63182]
[1725565271624,4.23920015,2359.2,2358.4,0.3788]
[1725565271625,4.83619867,2359.2,2358.4,0.3788]
[1725565271826,4.83619867,2359.2,2358.0,3.2078]
[1725565271827,5.20079852,2358.9,2358.2,0.3589]
[1725565272028,0.42406,2358.5,2358.2,0.4241]
[1725565272329,4.55806365,2358.8,2358.0,4.26814]
[1725565272528,4.98207365,2358.8,2358.0,4.26814]
[1725565272725,4.98207365,2358.8,2358.5,0.42405]
[1725565273033,4.55806365,2358.8,2358.1,1.06033]
[1725565273220,0.3646,2358.9,2358.7,0.42402]
[1725565273528,0.3646,2358.9,2358.6,0.42403]
[1725565274028,3.2078,2359.0,2358.4,1.06019]
[1725565274329,4.41695362,2358.9,2358.4,0.42406]
[1725565274522,0.42401,2358.8,2358.5,0.42405]
[1725565274723,5.20555362,2358.9,2358.6,0.42404]
[1725565274929,5.20555362,2358.9,2358.3,3.2078]
[1725565274930,0.424,2358.8,2358.5,0.42405]
[1725565275232,0.424,2358.8,2358.0,1.81606]
[1725565275233,0.42403,2358.7,2358.4,0.42406]
[1725565275621,4.78155362,2358.9,2357.9,3.2078]
[1725565275828,4.78155362,2358.9,2357.4,0.3769]
[1725565275829,0.42421,2357.7,2357.4,0.3769]
[1725565276022,0.00635015,2357.8,2357.7,0.4242]
[1725565276536,0.00635015,2357.8,2357.2,4.26851]
[1725565276537,4.24795015,2357.8,2357.2,3.2078]
[1725565276836,4.24795015,2357.8,2357.3,0.42427]
[1725565276837,0.00635015,2357.8,2357.3,0.42427]
[1725565277130,0.00635015,2357.8,2357.1,0.4243]
[1725565277131,0.42426,2357.4,2357.1,0.4243]
[1725565277336,0.42424,2357.5,2357.2,0.42428]
[1725565277630,3.2078,2357.5,2356.9,3.2078]
[1725565277939,0.42439,2356.7,2356.3,3.63224]
[1725565278230,9.16221063,2357.4,2354.2,3.2078]
[1725565278231,3.2078,2356.4,2354.2,3.2078]
[1725565278424,4.58,2355.4,2354.6,3.2078]
[1725565278631,4.58,2355.4,2353.8,0.741]
[1725565278632,3.2078,2355.5,2354.8,3.2078]
[1725565278823,0.43102375,2355.2,2354.5,3.2078]
[1725565279031,0.00636375,2355.2,2354.5,3.2078]
[1725565279325,0.00636375,2355.2,2353.5,4.58]
[1725565279326,7.7878,2354.6,2353.0,3.2078]
[1725565279526,3.2078,2354.6,2353.6,3.2078]
[1725565279724,3.2078,2354.6,2352.2,0.7348]
[1725565279725,3.2078,2354.1,2352.8,3.2078]
[1725565279924,4.58,2354.4,2352.8,3.2078]
[1725565279925,7.33582362,2354.5,2353.4,3.2078]
[1725565280124,0.00636375,2353.7,2353.1,3.2078]
[1725565280525,0.00636375,2353.7,2352.8,3.2078]
[1725565280829,0.00636375,2353.7,2353.5,3.2078]
[1725565281232,3.75e-06,2353.7,2353.6,4.2488]
[1725565281425,3.75e-06,2353.7,2353.6,4.67374]
[1725565281737,3.75e-06,2353.7,2353.6,10.67374]
[1725565282038,3.2078,2354.4,2354.3,0.42481]
[1725565282237,3.2078,2355.0,2354.6,0.42476]
[1725565282534,3.2078,2355.0,2354.0,3.2078]
[1725565282736,3.2078,2354.3,2353.7,3.2078]
[1725565282928,3.2078,2353.9,2353.5,0.42495]
[1725565283127,3.2078,2353.6,2353.5,0.00636375]
[1725565283334,3.2078,2353.6,2352.4,3.2078]
[1725565283633,3.2078,2353.3,2352.4,3.2078]
[1725565283835,3.2078,2353.7,2352.5,1.06285]
[1725565284133,3.2078,2353.3,2353.1,0.42503]
[1725565284340,3.2078,2353.3,2352.4,3.2078]
[1725565284634,4.82239644,2353.2,2352.4,3.2078]
[1725565284829,3.2078,2353.3,2352.9,0.42505]
[1725565285033,3.2078,2353.3,2353.1,0.42501]
[1725565285230,3.2078,2353.3,2352.4,3.2078]
[1725565285432,4.58,2353.8,2352.3,1.06294]
[1725565285433,3.2078,2353.7,2353.0,3.2078]
[1725565285734,3.2078,2353.7,2352.2,3.2078]
[1725565285735,7.92599734,2353.2,2352.2,3.2078]
[1725565285930,3.2078,2353.2,2352.2,3.2078]
[1725565286233,4.58,2353.4,2352.2,3.2078]
[1725565286234,3.2078,2352.8,2352.2,3.2078]
[1725565286625,3.2078,2352.8,2352.2,3.63299]
[1725565286827,4.69997261,2352.7,2352.6,0.42512]
[1725565287037,3.2078,2353.5,2353.4,0.42498]
[1725565287434,0.00636375,2353.9,2353.4,10.2488]
[1725565287638,0.00636375,2353.9,2353.8,0.4249]
[1725565287831,3.75e-06,2353.9,2353.8,6.4249]
[1725565288134,3.75e-06,2353.9,2353.8,10.6729]
[1725565288336,3.75e-06,2353.9,2353.8,8.6729]
[1725565288538,8.0008,2355.0,2354.8,0.42471]
[1725565288840,1.5751,2355.0,2354.8,0.42471]
[1725565289040,1.5751,2355.0,2354.5,3.2078]
[1725565289344,1.5751,2355.0,2354.9,0.42471]
[1725565289537,54.97517,2354.8,2354.7,0.00636375]
[1725565289736,54.97517,2354.8,2354.7,0.43110375]
[1725565289933,56.55027,2354.8,2354.7,0.43110375]
[1725565290241,54.97517,2354.8,2354.7,4.67750375]
[1725565290729,54.97517,2354.8,2354.7,0.43110375]
[1725565291130,54.97517,2354.8,2354.7,10.67750375]
[1725565291328,54.97517,2354.8,2354.7,0.00636375]
[1725565291329,64.39619548,2354.8,2354.7,0.00636375]
[1725565291532,58.57469548,2354.8,2354.7,4.67750375]
[1725565291738,54.11029,2354.8,2354.7,0.43110375]
[1725565291935,51.87184,2354.8,2354.7,14.94716375]
[1725565292137,49.08124317,2354.8,2354.7,14.94716375]
[1725565292347,46.54831317,2354.8,2354.7,14.94716375]
[1725565292636,43.58822317,2354.8,2354.7,14.94716375]
[1725565292844,41.09409317,2354.8,2354.7,16.00902375]
[1725565293045,35.65468144,2354.8,2354.7,16.00902375]
[1725565293336,32.82979144,2354.8,2354.7,16.00902375]
[1725565293734,29.79244144,2354.8,2354.7,16.00902375]
[1725565293930,27.55980144,2354.8,2354.7,16.00902375]
[1725565294134,26.06673144,2354.8,2354.7,16.00902375]
[1725565294335,24.63548144,2354.8,2354.7,16.00902375]
[1725565294740,18.73430144,2354.8,2354.7,21.59706851]
[1725565294934,12.59668144,2354.8,2354.7,21.59706851]
[1725565295141,5.01528428,2354.8,2354.7,21.59706851]
[1725565295436,0.00636375,2355.2,2355.1,2.54803]
[1725565295640,3.75e-06,2355.2,2355.1,2.54803]
[1725565295834,3.75e-06,2355.2,2355.1,18.78187849]
[1725565296031,3.75e-06,2355.2,2355.1,18.35707849]
[1725565296534,0.213,2356.5,2356.4,0.42443]
[1725565296739,0.3791,2357.0,2356.4,0.42443]
[1725565297039,4.24640375,2356.6,2356.5,3.2078]
[1725565297245,4.24640375,2356.6,2356.5,3.63222]
[1725565297941,0.00636375,2356.8,2356.7,0.42438]
[1725565298248,6.00204803,2356.8,2356.6,0.42439]
[1725565298545,4.24640375,2356.6,2356.3,0.00636375]
[1725565298734,4.24640375,2356.4,2356.3,0.00636375]
[1725565298936,10.24208803,2356.4,2356.3,0.00636375]
[1725565299336,4.24640375,2356.4,2356.3,0.00636375]
[1725565299536,0.00636375,2356.8,2356.3,4.67481375]
[1725565299749,0.00636375,2356.8,2356.7,3.2078]
[1725565299943,0.00636375,2356.8,2356.7,0.42438]
[1725565300243,10.24845178,2356.8,2356.6,0.42439]
[1725565300444,4.24640375,2356.6,2356.4,3.2078]
[1725565300644,4.2527675,2356.8,2356.5,0.42441]
[1725565300941,4.2527675,2356.8,2356.6,0.42439]
[1725565301140,4.2527675,2356.8,2356.5,3.2078]
[1725565301141,4.2527675,2356.8,2356.7,0.42438]
[1725565301442,0.00636375,2356.8,2356.7,0.42438]
[1725565301644,0.00636375,2356.8,2356.7,4.66758]
[1725565301943,0.00636375,2356.8,2356.7,10.66758]
[1725565302944,0.3786,2357.9,2356.7,18.22754745]
[1725565303134,10.62068803,2357.9,2357.1,3.2078]
[1725565303444,10.62068803,2357.9,2356.3,0.00636375]
[1725565303445,4.24640375,2357.0,2356.8,3.2078]
[1725565303944,7.7878,2357.8,2357.0,0.42432]
[1725565304142,0.00636375,2357.1,2357.0,0.42432]
[1725565304339,0.00636375,2357.1,2357.0,3.63212]
[1725565304948,0.00636375,2357.1,2357.0,7.87452]
[1725565306042,0.00636375,2357.1,2357.0,0.42432]
[1725565306247,0.00636375,2357.1,2357.0,7.87452]
[1725565306443,0.00636375,2357.1,2357.0,3.2078]
[1725565306644,4.2527675,2357.1,2357.0,3.2078]
[1725565306844,4.2527675,2357.1,2356.6,3.2078]
[1725565307140,4.2527675,2357.1,2356.3,0.00636375]
[1725565307141,4.24640375,2356.7,2356.3,0.00636375]
[1725565307351,4.24640375,2356.4,2356.3,0.00636375]
[1725565307936,0.7447,2357.0,2356.3,0.00636375]
[1725565308139,4.24640375,2356.8,2356.6,0.42439]
[1725565308340,4.24640375,2356.8,2356.5,3.2078]
[1725565308650,4.24640375,2356.8,2356.6,0.42439]
[1725565309370,0.00636375,2357.1,2356.6,4.2432]
[1725565309649,4.2527675,2357.1,2356.8,3.63215]
[1725565309947,4.2527675,2357.1,2357.0,0.42433]
[1725565310154,4.2527675,2357.1,2356.8,3.2078]
[1725565310155,4.2527675,2357.1,2356.9,0.42434]
[1725565310349,4.2527675,2357.1,2356.8,3.2078]
[1725565310649,4.24640375,2357.0,2356.8,3.2078]
[1725565310952,0.00636375,2357.1,2357.0,0.42433]
[1725565311958,0.00636375,2357.1,2357.0,10.66673]
[1725565313045,0.00636375,2357.1,2357.0,4.66673]
[1725565313345,0.00636375,2357.1,2357.0,10.66673]
[1725565313647,0.00636375,2357.1,2357.0,4.66673]
[1725565313848,0.00636375,2357.1,2357.0,10.66673]
[1725565314048,0.00636375,2357.1,2357.0,4.66673]
[1725565314355,0.00636375,2357.1,2357.0,10.66673]
[1725565315149,0.00636375,2357.1,2357.0,11.72755]
[1725565315948,3.75e-06,2357.1,2357.0,18.5671712]
[1725565316545,3.75e-06,2357.1,2357.0,18.3591562]
[1725565316749,3.75e-06,2357.1,2357.0,10.66673]
[1725565316951,3.75e-06,2357.1,2357.0,11.72755]
[1725565317152,3.75e-06,2357.1,2357.0,4.66673]
[1725565317544,3.75e-06,2357.1,2357.0,0.42433]
[1725565317748,3.75e-06,2357.1,2356.8,3.2078]
[1725565317953,4.67075375,2356.9,2356.4,0.42443]
[1725565318146,4.24640375,2356.4,2356.1,3.2078]
[1725565318348,1.1765,2356.8,2355.9,2.6139]
[1725565318349,8.82640375,2356.2,2355.9,2.6139]
[1725565318547,5.00447,2356.2,2355.9,2.6139]
[1725565318743,5.00447,2356.2,2355.0,8.76585514]
[1725565318744,7.45420375,2356.0,2355.0,8.76585514]
[1725565318942,4.58,2356.2,2355.0,3.2078]
[1725565318943,4.24640375,2355.2,2355.0,3.2078]
[1725565319148,0.00636375,2355.3,2355.0,3.2078]
[1725565319349,4.2527675,2355.3,2355.1,0.42466]
[1725565319953,4.2527675,2355.3,2355.0,3.63248]
[1725565320156,0.00636375,2355.3,2355.0,3.2078]
[1725565320459,4.2527675,2355.3,2355.0,3.63248]
[1725565320658,4.24640375,2355.2,2355.0,3.2078]
[1725565320851,4.24640375,2355.1,2355.0,3.2078]
[1725565321051,4.24640375,2355.1,2354.9,0.00636375]
[1725565321353,6.00204803,2355.3,2355.2,0.42465]
[1725565321354,0.00636375,2355.3,2355.2,0.42465]
[1725565321559,3.75e-06,2355.3,2355.2,3.63245]
[1725565321759,3.75e-06,2355.3,2355.2,13.87805]
[1725565322464,0.213,2356.5,2356.4,0.42443]
[1725565322650,4.24640375,2356.5,2356.4,0.42443]
[1725565322849,4.24640375,2356.5,2356.1,3.2078]
[1725565323165,5.99568428,2356.5,2355.8,3.2078]
[1725565323456,5.99568428,2356.5,2355.3,1.06157]
[1725565323457,4.2527675,2356.5,2356.4,0.42443]
[1725565323664,0.00636375,2356.5,2356.4,0.42443]
[1725565323861,0.00636375,2356.5,2356.4,10.66843]
[1725565324252,3.75e-06,2356.5,2356.4,11.72952]
[1725565324556,3.75e-06,2356.5,2356.4,17.27252807]
[1725565324860,3.75e-06,2356.5,2356.4,0.42443]
[1725565324861,4.2464075,2356.5,2356.4,0.42443]
[1725565325555,4.2464075,2356.5,2356.3,3.2078]
[1725565325761,3.75e-06,2356.5,2356.4,4.66843]
[1725565325957,3.75e-06,2356.5,2356.4,10.66843]
[1725565326151,3.75e-06,2356.5,2356.4,17.36804067]
[1725565326360,4.2464075,2356.5,2356.1,0.00636375]
[1725565326560,5.99568803,2356.5,2356.4,3.63223]
[1725565326760,3.75e-06,2356.5,2356.4,3.63223]
[1725565326968,10.24209178,2356.5,2356.4,3.63223]
[1725565327173,10.24209178,2356.5,2356.4,3.2078]
[1725565327858,10.24209178,2356.5,2356.1,0.00636375]
[1725565328053,4.24640375,2356.3,2356.2,0.42446]
[1725565328258,4.2464075,2356.5,2356.4,0.42443]
[1725565328458,5.99568803,2356.5,2356.4,3.63223]
[1725565328657,10.24209178,2356.5,2356.1,0.00636375]
[1725565328863,4.24640375,2356.2,2356.1,0.43084375]
[1725565329369,3.75e-06,2356.5,2356.1,4.25036375]
[1725565329662,4.2464075,2356.5,2356.4,0.42443]
[1725565330261,3.75e-06,2356.5,2356.4,0.42443]
[1725565330664,4.2464075,2356.5,2356.3,3.2078]
[1725565331372,4.2464075,2356.5,2356.3,3.63225]
[1725565331882,4.24640375,2356.4,2356.1,0.43084375]
[1725565332061,5.99568803,2356.5,2356.3,0.42445]
[1725565332262,4.24640375,2356.3,2356.1,0.00636375]
[1725565332463,4.24640375,2356.3,2356.1,0.43083375]
[1725565332658,5.99568803,2356.5,2356.2,0.42446]
[1725565332659,3.75e-06,2356.5,2356.2,0.42446]
[1725565332862,3.75e-06,2356.5,2356.3,0.42445]
[1725565333061,3.75e-06,2356.5,2356.1,0.00636375]
[1725565333270,3.75e-06,2356.5,2356.4,0.42443]
[1725565333572,10.24209178,2356.5,2356.1,0.00636375]
[1725565333762,4.24640375,2356.2,2356.1,0.00636375]
[1725565333966,4.24640375,2356.2,2355.2,1.0616]
[1725565333967,1.06123,2356.1,2355.2,3.63243]
[1725565334167,1.06123,2356.1,2354.7,1.06182]
[1725565334168,4.24640375,2355.3,2354.7,4.26966]
[1725565334369,4.24640375,2355.1,2355.0,0.42469]
[1725565334574,9.20348428,2355.9,2355.6,0.42457]
[1725565334777,4.24640375,2355.7,2355.6,0.42458]
[1725565335073,4.24640375,2355.7,2355.5,3.2078]
[1725565335265,4.24640375,2355.6,2355.4,0.43097375]
[1725565335464,6.00204803,2355.9,2355.4,0.00636375]
[1725565335465,4.24640375,2355.5,2355.4,0.00636375]
[1725565335664,4.24640375,2355.7,2355.6,0.42458]
[1725565336272,4.24640375,2355.7,2355.6,3.63238]
[1725565337275,10.24208803,2355.7,2355.4,0.00636375]
[1725565337472,4.24640375,2355.5,2355.4,0.00636375]
[1725565337865,19.44988803,2355.5,2354.8,3.2078]
[1725565338069,4.24640375,2354.9,2354.6,0.42475]
[1725565338373,4.24640375,2354.9,2353.8,2.15819328]
[1725565338374,4.24640375,2354.1,2353.7,3.2078]
[1725565338674,4.24640375,2353.9,2353.8,0.4249]
[1725565339178,0.00636375,2354.1,2354.0,0.42487]
[1725565339474,0.00636375,2354.1,2354.0,3.63267]
[1725565339671,0.00636375,2354.1,2354.0,7.88067]
[1725565340175,3.75e-06,2354.1,2354.0,14.94285]
[1725565340372,3.75e-06,2354.1,2354.0,14.39796284]
[1725565340576,3.75e-06,2354.1,2354.0,7.88067]
[1725565340777,3.75e-06,2354.1,2353.9,3.2078]
[1725565340778,10.24209178,2354.1,2353.9,3.2078]
[1725565340966,10.24209178,2354.1,2353.6,3.21416375]
[1725565340967,4.24640375,2354.0,2353.6,3.21416375]
[1725565341168,4.24640375,2353.9,2353.6,3.21416375]
[1725565341372,4.24640375,2353.8,2353.7,0.42492]
[1725565341570,4.24640375,2353.7,2353.6,3.63909375]
[1725565341878,4.24640375,2353.7,2353.6,3.63910375]
[1725565342074,4.24640375,2353.7,2353.6,3.21416375]
[1725565342375,10.24208803,2353.7,2353.6,3.21416375]
[1725565342977,3.75e-06,2354.1,2354.0,0.42487]
[1725565343274,3.75e-06,2354.1,2353.9,0.42488]
[1725565343275,5.99568803,2354.1,2353.9,0.42488]
[1725565343576,5.99568803,2354.1,2353.6,3.21416375]
[1725565343577,4.24640375,2354.0,2353.6,3.21416375]
[1725565343772,5.99568803,2354.1,2353.6,3.21416375]
[1725565343773,4.24640375,2353.7,2353.6,3.21416375]
[1725565344177,10.24208803,2353.7,2353.6,3.21416375]
[1725565344379,10.24208803,2353.7,2353.6,0.00636375]
[1725565345676,3.75e-06,2354.1,2354.0,0.42487]
[1725565345981,3.75e-06,2354.1,2353.9,0.42488]
[1725565345982,4.24640375,2354.0,2353.9,0.42488]
[1725565346283,3.75e-06,2354.1,2354.0,4.67287]
[1725565346478,3.75e-06,2354.1,2354.0,7.88067]
[1725565347379,3.75e-06,2354.1,2354.0,13.88067]
[1725565348391,10.24209178,2354.1,2354.0,0.42487]
[1725565348777,4.2464075,2354.1,2354.0,0.42487]
[1725565348976,3.75e-06,2354.1,2354.0,0.42487]
[1725565349178,3.75e-06,2354.1,2354.0,3.63267]
[1725565349374,3.75e-06,2354.1,2354.0,0.42487]
[1725565349577,3.75e-06,2354.1,2354.0,7.88067]
[1725565349884,3.75e-06,2354.1,2354.0,3.63267]
[1725565350986,3.75e-06,2354.1,2354.0,8.94285]
[1725565351175,3.75e-06,2354.1,2354.0,20.46755207]
[1725565351379,3.75e-06,2354.1,2354.0,21.52973207]
[1725565351683,0.213,2355.5,2354.4,1.06195]
[1725565351881,0.213,2355.5,2354.9,0.42471]
[1725565351882,4.24640375,2355.0,2354.9,0.42471]
[1725565352179,5.99568428,2355.5,2355.4,0.42462]
[1725565352683,10.24208803,2355.5,2355.4,0.42462]
[1725565352884,10.24208803,2355.5,2355.2,0.00636375]
[1725565353177,4.24640375,2355.3,2355.2,0.43101375]
[1725565353676,0.00636375,2355.7,2355.5,0.42458]
[1725565353984,0.00636375,2355.7,2355.2,0.00636375]
[1725565353985,6.00204803,2355.7,2355.2,0.00636375]
[1725565354178,4.24640375,2355.5,2355.4,0.42462]
[1725565354877,0.00636375,2355.7,2355.6,0.42458]
[1725565355179,4.2527675,2355.7,2355.6,0.42458]
[1725565355380,4.2527675,2355.7,2355.6,3.63238]
[1725565355381,0.00636375,2355.7,2355.6,3.63238]
[1725565355876,0.00636375,2355.7,2355.6,8.93863]
[1725565356076,0.00636375,2355.7,2355.6,3.63238]
[1725565356483,0.00636375,2355.7,2355.6,7.87718]
[1725565356686,0.00636375,2355.7,2355.6,3.63238]
[1725565357482,0.00636375,2355.7,2355.6,0.42458]
[1725565357778,0.00636375,2355.7,2355.6,3.63238]
[1725565357986,4.2527675,2355.7,2355.6,3.2078]
[1725565358186,10.24845178,2355.7,2355.3,3.2078]
[1725565358481,6.00204803,2355.7,2355.5,0.4246]
[1725565358880,4.24640375,2355.6,2355.2,0.00636375]
[1725565359083,6.00204803,2355.7,2355.2,0.00636375]
[1725565359084,4.24640375,2355.3,2355.2,0.43101375]
[1725565359387,6.00204803,2355.7,2355.6,0.42458]
[1725565359774,0.00636375,2355.7,2355.6,3.63238]
[1725565360081,3.75e-06,2355.7,2355.6,26.16890494]
[1725565360980,3.75e-06,2355.7,2355.6,28.29181494]
[1725565361280,0.213,2356.9,2355.6,28.29181494]
[1725565361281,0.213,2356.9,2356.8,0.42436]
[1725565361488,0.3588,2357.5,2357.2,0.42428]
[1725565361683,4.24640375,2357.3,2356.5,3.2078]
[1725565361985,6.35448428,2357.5,2356.6,5.64110016]
[1725565362185,0.00636375,2357.1,2356.7,0.00636375]
[1725565362785,4.24640375,2357.0,2356.8,0.42436]
[1725565362977,4.24640375,2356.9,2356.7,0.43073375]
[1725565363174,6.00204803,2357.1,2356.9,0.42434]
[1725565363383,4.24640375,2356.9,2356.8,0.42436]
[1725565363677,10.24208803,2356.9,2356.8,0.42436]
[1725565363873,10.24208803,2356.9,2356.7,0.00636375]
[1725565364078,4.24640375,2356.8,2356.7,0.00636375]
[1725565364489,10.24208803,2356.8,2356.7,0.00636375]
[1725565364690,10.24208803,2356.8,2356.7,0.43074375]
[1725565364890,10.24208803,2356.8,2356.7,0.00636375]
[1725565365484,10.24208803,2356.8,2356.7,0.43074375]
[1725565365981,0.00636375,2357.1,2356.7,0.00636375]
[1725565366177,0.00636375,2357.1,2357.0,0.42433]
[1725565366590,0.06447499,2357.1,2357.0,0.42433]
[1725565367285,10.30656302,2357.1,2356.9,0.42434]
[1725565367478,4.24640375,2357.0,2356.7,0.00636375]
[1725565367680,0.05811124,2356.9,2356.7,0.00636375]
[1725565367881,4.24640375,2356.8,2356.7,0.00636375]
[1725565368282,4.24640375,2356.8,2356.7,0.43074375]
[1725565368484,0.05811124,2356.9,2356.8,0.42436]
[1725565368684,4.30451499,2356.9,2356.8,0.42436]
[1725565369793,4.30451499,2356.9,2356.7,0.00636375]
[1725565369794,10.30019927,2356.9,2356.7,0.00636375]
[1725565370096,4.24640375,2356.8,2356.7,0.43074375]